[Event "11th LCC FIDE Open 2019"]
[Site "London"]
[Date "2019.12.02"]
[Round "5.47"]
[White "Coote, Trevor D"]
[Black "Grey, Nicholas D"]
[Result "0-1"]
[ECO "B07"]
[WhiteElo "2075"]
[BlackElo "1692"]
[Annotator "NA RC"]
[PlyCount "102"]
[EventDate "2019.11.29"]
[EventType "swiss"]
[EventCountry "ENG"]
[SourceTitle "playchess.com"]
[Source "ChessBase"]
[SourceQuality "1"]
[TimeControl "40/5400+30:1800+30"]

1. d4 {[%emt 0:00:00]} Nf6 {[%emt 0:00:01]} 2. Nc3 {[%emt 0:00:00]} d6 {[%emt 0:01:12]} 3. e4 {[%emt 0:00:00]} g6 {[%emt 0:00:49]} 4. Be2 {[%emt 0:00:30]} Bg7 {[%emt 0:01:22]} 5. Be3 {[%emt 0:00:10]} O-O {[%emt 0:04:05]} 6. Qd2 {[%emt 0:01:14]} c6 {[%emt 0:06:31]} 7. Bh6 {[%emt 0:07:25] B07: Pirc Defence: Miscellaneous Systems} b5 {[%emt 0:10:10]} 8. a3 {[%emt 0:01:40]} Bb7 {[%emt 0:07:36]} (8... e5 9. d5 cxd5 10. exd5 Bxh6 11. Qxh6 {0-1 (66) Kelires,A (2530)-Saric,I (2689) Rio Achaea 2018}) 9. h4 $146 {[%emt 0:01:58]} ({Predecessor:} 9. Bxg7 Kxg7 10. h4 Qa5 11. O-O-O b4 12. Qg5 Qxg5+ 13. hxg5 bxc3 14. gxf6+ exf6 15. bxc3 {1-0 (48) Raabe,H (1425)-Baier,J (1448) Dortmund 2001}) 9... c5 {[%emt 0:01:37]} 10. Bxg7 {[%emt 0:02:22]} Kxg7 {[%emt 0:01:38]} 11. dxc5 {[%emt 0:01:35]} dxc5 {[%emt 0:04:07]} 12. Qxd8 {[%emt 0:14:01]} Rxd8 {[%emt 0:00:37]} 13. f3 {[%emt 0:22:37]} a6 {[%emt 0:04:33]} 14. g4 {[%emt 0:00:59]} Nc6 {[%emt 0:04:01]} 15. Nh3 {[%emt 0:05:48]} Nd4 {[%emt 0:01:16]} 16. Bd1 {[%emt 0:00:25]} Rac8 {[%emt 0:16:29]} 17. O-O {[%emt 0:03:29]} Nd7 {[%emt 0:02:19]} 18. Nf4 {[%emt 0:03:44]} Nb6 {[%emt 0:02:22]} 19. b3 {[%emt 0:05:03]} a5 {[%emt 0:06:21]} 20. Rf2 {[%emt 0:03:21]} c4 {[%emt 0:03:05]} 21. Nce2 {[%emt 0:02:30]} e5 {[%emt 0:01:17]} 22. Nxd4 {[%emt 0:01:46]} exd4 {[%emt 0:02:58]} 23. Rd2 {[%emt 0:04:52]} Rd7 {[%emt 0:01:41]} 24. Kf2 {[%emt 0:03:01]} Rcd8 {[%emt 0:01:59]} 25. Be2 {[%emt 0:01:25]} d3 {[%emt 0:02:17]} 26. cxd3 {[%emt 0:02:07]} cxb3 {[%emt 0:01:22]} 27. Rb2 {[%emt 0:00:39]} a4 {[%emt 0:01:05]} 28. Rc1 {[%emt 0:01:36]} Rc8 {[%emt 0:01:23]} 29. Rxc8 {[%emt 0:01:08]} Bxc8 {[%emt 0:00:58]} 30. Ke3 {[%emt 0:00:19]} Rc7 {[%emt 0:02:15]} 31. Kd2 {[%emt 0:01:06]} f6 {[%emt 0:03:02]} 32. Bd1 {[%emt 0:01:03]} g5 {[%emt 0:01:08]} 33. hxg5 {[%emt 0:00:58]} fxg5 {[%emt 0:00:17]} 34. Ne2 {[%emt 0:00:02]} Be6 {[%emt 0:00:53]} 35. Nd4 {[%emt 0:00:08]} Bd7 {[%emt 0:00:50]} 36. Ne2 {[%emt 0:01:35]} b4 {[%emt 0:00:57]} 37. axb4 {[%emt 0:00:49]} Be6 {[%emt 0:00:43]} 38. Nd4 {[%emt 0:00:08]} Bf7 {[%emt 0:00:41]} 39. Nb5 {[%emt 0:02:05]} Rd7 {[%emt 0:00:25]} 40. Na3 {[%emt 0:00:07]} Nc4+ {[%emt 0:01:01]} 41. Nxc4 {[%emt 0:32:27]} Bxc4 {[%emt 0:30:26]} 42. Kc3 {[%emt 0:00:47]} Bf7 {[%emt 0:02:20]} 43. d4 {[%emt 0:01:03]} Rc7+ {[%emt 0:00:00]} 44. Kd2 {[%emt 0:00:00]} a3 {[%emt 0:00:00]} (44... Ra7 $142 45. Bxb3 Bxb3) 45. Rxb3 {[%emt 0:00:00]} Bxb3 {[%emt 0:00:00]} 46. Bxb3 {[%emt 0:00:00]} Rc8 {[%emt 0:00:00]} 47. e5 {[%emt 0:00:00]} Rf8 {[%emt 0:00:00]} 48. Ke3 {[%emt 0:00:00]} Rb8 $2 {[%emt 0:00:00]} (48... Ra8 49. Ke4 a2 50. Bxa2 Rxa2) 49. e6 {[%emt 0:00:00]} (49. Kd3 $142 Rxb4 50. Kc3) 49... Rxb4 {[%emt 0:00:00]} 50. Ba2 {[%emt 0:00:00]} Kf6 {[%emt 0:00:00]} 51. d5 {[%emt 0:00:00]} Ke7 {[%emt 0:00:00]} 0-1

[Event "11th LCC FIDE Open 2019"]
[Site "London"]
[Date "2019.12.02"]
[Round "5.49"]
[White "Zymberi, Astrit"]
[Black "Varsha, Ramesh"]
[Result "1/2-1/2"]
[ECO "E44"]
[WhiteElo "2148"]
[BlackElo "1669"]
[Annotator "ChessBase"]
[PlyCount "48"]
[EventDate "2019.11.29"]
[EventType "swiss"]
[EventCountry "ENG"]
[SourceTitle "playchess.com"]
[Source "ChessBase"]
[SourceQuality "1"]
[TimeControl "40/5400+30:1800+30"]

1. d4 {[%emt 0:00:36]} Nf6 {[%emt 0:00:00]} 2. c4 {[%emt 0:00:05]} e6 {[%emt 0:00:00]} 3. Nc3 {[%emt 0:00:04]} Bb4 {[%emt 0:00:00]} 4. e3 {[%emt 0:00:04]} b6 {[%emt 0:00:00]} 5. Nge2 {[%emt 0:00:04]} Bb7 {[%emt 0:00:08]} 6. a3 {[%emt 0:00:05]} Be7 {[%emt 0:00:07]} 7. d5 {[%emt 0:00:05]} O-O {[%emt 0:00:08]} 8. g3 {[%emt 0:05:43]} b5 {[%emt 0:00:19]} 9. Bg2 {[%emt 0:21:13]} bxc4 {[%emt 0:01:08]} 10. e4 {[%emt 0:02:47]} Na6 {[%emt 0:01:51]} 11. O-O {[%emt 0:02:52]} Nc5 {[%emt 0:00:55]} 12. e5 {[%emt 0:07:04]} Nxd5 {[%emt 0:01:01]} 13. Nxd5 {[%emt 0:00:05]} Bxd5 {[%emt 0:00:14]} 14. Bxd5 {[%emt 0:00:07]} exd5 {[%emt 0:00:09]} 15. Qxd5 {[%emt 0:00:16]} Nd3 {[%emt 0:03:22]} 16. f4 {[%emt 0:02:29]} Qb8 {[%emt 0:02:40]} 17. Be3 {[%emt 0:15:08]} Qxb2 {[%emt 0:04:54]} 18. Nd4 {[%emt 0:00:54]} Qc3 {[%emt 0:06:27]} 19. Nf5 {[%emt 0:02:08]} Bxa3 {[%emt 0:02:17]} 20. Bd4 {[%emt 0:09:41]} Qb3 {[%emt 0:01:38]} 21. Rab1 {[%emt 0:14:13]} Qa4 {[%emt 0:03:28]} 22. Ra1 {[%emt 0:03:18]} Qb3 {[%emt 0:02:00]} 23. Rab1 {[%emt 0:00:08]} Qa4 {[%emt 0:00:58]} 24. Ra1 {[%emt 0:00:03]} Qb3 {[%emt 0:06:03]} 1/2-1/2

[Event "11th LCC FIDE Open 2019"]
[Site "London"]
[Date "2019.12.02"]
[Round "5.50"]
[White "Jukes, Sam"]
[Black "Brozel, Sacha"]
[Result "0-1"]
[ECO "E11"]
[WhiteElo "1899"]
[BlackElo "2188"]
[Annotator "RC"]
[PlyCount "80"]
[EventDate "2019.11.29"]
[EventType "swiss"]
[EventCountry "ENG"]
[SourceTitle "playchess.com"]
[Source "ChessBase"]
[SourceQuality "1"]
[TimeControl "40/5400+30:1800+30"]

1. d4 {[%emt 0:00:00]} Nf6 {[%emt 0:00:01]} 2. c4 {[%emt 0:00:00]} e6 {[%emt 0:00:07]} 3. Nf3 {[%emt 0:00:00]} Bb4+ {[%emt 0:00:58]} 4. Bd2 {[%emt 0:00:09]} c5 {[%emt 0:00:35]} 5. Bxb4 {[%emt 0:01:55]} cxb4 {[%emt 0:00:07]} 6. e3 {[%emt 0:03:16]} O-O {[%emt 0:00:35]} 7. Bd3 {[%emt 0:00:45]} d6 {[%emt 0:01:10]} 8. O-O {[%emt 0:01:22]} Qe7 {[%emt 0:06:55]} 9. Nbd2 {[%emt 0:08:07]} e5 {[%emt 0:17:43]} 10. Qb1 {[%emt 0:09:48]} Re8 {[%emt 0:13:17]} 11. c5 {[%emt 0:10:43]} dxc5 {[%emt 0:05:33]} 12. dxe5 {[%emt 0:01:55]} Ng4 {[%emt 0:04:30]} 13. Nc4 {[%emt 0:15:26]} Nc6 {[%emt 0:10:24]} 14. Bxh7+ {[%emt 0:07:31]} Kf8 {[%emt 0:04:30]} 15. Be4 {[%emt 0:15:58]} Ncxe5 {[%emt 0:03:51]} 16. Ncxe5 {[%emt 0:00:35]} Nxe5 {[%emt 0:00:08]} 17. Qc2 {[%emt 0:03:57]} Rb8 {[%emt 0:04:44]} 18. Rac1 {[%emt 0:01:34]} b6 {[%emt 0:02:34]} 19. Nxe5 {[%emt 0:00:19]} Qxe5 {[%emt 0:00:07]} 20. Bc6 {[%emt 0:02:11]} Bf5 {[%emt 0:00:37]} 21. Qe2 {[%emt 0:02:35]} Re6 {[%emt 0:01:28]} 22. Bd7 {[%emt 0:00:37]} Re7 {[%emt 0:05:06]} 23. Bxf5 {[%emt 0:00:11]} Qxf5 {[%emt 0:00:06]} 24. Rfd1 {[%emt 0:00:26]} Rd7 {[%emt 0:01:30]} 25. Rxd7 {[%emt 0:00:43]} Qxd7 {[%emt 0:00:05]} 26. Rd1 {[%emt 0:00:27]} Qe6 {[%emt 0:00:04]} 27. Qd3 {[%emt 0:01:08]} Kg8 {[%emt 0:00:44]} 28. b3 {[%emt 0:00:53]} a5 {[%emt 0:02:39]} 29. Kf1 {[%emt 0:01:34]} a4 {[%emt 0:00:27]} 30. Qd6 {[%emt 0:00:42]} Qxd6 {[%emt 0:00:42]} 31. Rxd6 {[%emt 0:00:05]} Kf8 {[%emt 0:03:47]} 32. Ke2 {[%emt 0:00:24]} Ke7 {[%emt 0:00:05]} 33. Rd3 {[%emt 0:00:36]} b5 {[%emt 0:02:43]} 34. Kd2 {[%emt 0:01:50]} c4 {[%emt 0:03:29]} 35. Rd4 {[%emt 0:03:38]} Rc8 {[%emt 0:02:27]} 36. bxc4 {[%emt 0:02:23]} bxc4 {[%emt 0:00:27]} 37. Kc2 {[%emt 0:01:41]} b3+ {[%emt 0:01:17]} 38. Kc3 {[%emt 0:01:34]} Rb8 {[%emt 0:00:22]} 39. axb3 {[%emt 0:01:53]} cxb3 {[%emt 0:00:18]} 40. Kb2 {[%emt 0:00:28]} a3+ {[%emt 0:00:16]} 0-1

[Event "11th LCC FIDE Open 2019"]
[Site "London"]
[Date "2019.12.02"]
[Round "5.51"]
[White "Wilks, Simon"]
[Black "Finn, Peter"]
[Result "1-0"]
[ECO "C96"]
[WhiteElo "2071"]
[BlackElo "1895"]
[Annotator "NA"]
[PlyCount "49"]
[EventDate "2019.11.29"]
[EventType "swiss"]
[EventCountry "ENG"]
[SourceTitle "playchess.com"]
[Source "ChessBase"]
[SourceQuality "1"]
[TimeControl "40/5400+30:1800+30"]

1. e4 {[%emt 0:56:46]} c5 {[%emt 0:00:06]} 2. Nf3 {[%emt 0:00:12]} Nc6 {[%emt 0:00:16]} 3. Bb5 {[%emt 0:00:18]} e5 {[%emt 0:00:11]} 4. O-O {[%emt 0:11:52]} Bd6 {[%emt 0:00:08]} 5. Bc4 {[%emt 0:04:11]} Nf6 {[%emt 0:02:17]} 6. Re1 {[%emt 0:00:32]} O-O {[%emt 0:01:53]} 7. d3 {[%emt 0:01:08]} Be7 {[%emt 0:07:53]} 8. c3 {[%emt 0:03:00]} d6 {[%emt 0:01:10]} 9. h3 {[%emt 0:02:46]} Na5 {[%emt 0:18:41]} 10. Bb5 {[%emt 0:02:53]} a6 {[%emt 0:01:09]} 11. Ba4 {[%emt 0:00:05]} b5 {[%emt 0:00:08]} 12. Bc2 {[%emt 0:00:07]} Bb7 {[%emt 0:00:31]} 13. d4 {[%emt 0:01:06]} exd4 {[%emt 0:04:06]} 14. cxd4 {[%emt 0:00:22]} d5 {[%emt 0:00:22]} 15. e5 {[%emt 0:12:35]} Ne4 {[%emt 0:00:45]} 16. Nbd2 {[%emt 0:05:48]} Nxd2 {[%emt 0:10:12]} 17. Qxd2 {[%emt 0:01:20]} c4 {[%emt 0:01:09]} 18. Qf4 {[%emt 0:01:29]} Bc8 {[%emt 0:02:16]} 19. Qg3 {[%emt 0:01:46]} Kh8 {[%emt 0:02:10]} 20. Bf4 {[%emt 0:11:18]} h6 {[%emt 0:16:12]} 21. e6 {[%emt 0:04:45]} Nc6 {[%emt 0:07:29]} 22. exf7 {[%emt 0:03:50]} g5 {[%emt 0:03:37]} 23. Bc7 {[%emt 0:01:30]} Qd7 {[%emt 0:01:46]} 24. Ne5 {[%emt 0:00:32]} Bd6 {[%emt 0:02:14]} 25. Bxd6 {[%emt 0:00:33]} 1-0

[Event "11th LCC FIDE Open 2019"]
[Site "London"]
[Date "2019.12.02"]
[Round "5.53"]
[White "Orgler, Philipp"]
[Black "Lohia, Sohum"]
[Result "1-0"]
[ECO "D36"]
[WhiteElo "2047"]
[BlackElo "1889"]
[Annotator "NA"]
[PlyCount "55"]
[EventDate "2019.11.29"]
[EventType "swiss"]
[EventCountry "ENG"]
[SourceTitle "playchess.com"]
[Source "ChessBase"]
[SourceQuality "1"]
[TimeControl "40/5400+30:1800+30"]

1. d4 {[%emt 0:40:02]} d5 {[%emt 0:00:14]} 2. c4 {[%emt 0:01:13]} e6 {[%emt 0:00:47]} 3. Nc3 {[%emt 0:00:43]} Nf6 {[%emt 0:00:10]} 4. cxd5 {[%emt 0:00:51]} exd5 {[%emt 0:00:24]} 5. Bg5 {[%emt 0:00:14]} Nbd7 {[%emt 0:00:27]} 6. e3 {[%emt 0:00:24]} c6 {[%emt 0:00:12]} 7. Bd3 {[%emt 0:00:21]} Be7 {[%emt 0:00:15]} 8. Nf3 {[%emt 0:01:57]} O-O {[%emt 0:00:10]} 9. Qc2 {[%emt 0:02:40]} h6 {[%emt 0:00:38]} 10. Bh4 {[%emt 0:01:13]} Re8 {[%emt 0:02:08]} 11. O-O {[%emt 0:03:14]} Ne4 {[%emt 0:03:09]} 12. Bg3 {[%emt 0:03:01]} Nxg3 {[%emt 0:01:03]} 13. hxg3 {[%emt 0:00:09]} Nf6 {[%emt 0:09:40]} 14. Rab1 {[%emt 0:01:55]} a5 {[%emt 0:05:14]} 15. a3 {[%emt 0:00:15]} Bd6 {[%emt 0:06:28]} 16. Na4 {[%emt 0:03:23]} Ne4 {[%emt 0:02:21]} 17. b4 {[%emt 0:09:52]} Qe7 {[%emt 0:10:11]} 18. Nb6 {[%emt 0:08:32]} Ra7 {[%emt 0:01:03]} 19. b5 {[%emt 0:20:06]} Bxa3 {[%emt 0:07:45]} 20. bxc6 {[%emt 0:03:09]} bxc6 {[%emt 0:00:24]} 21. Ne5 {[%emt 0:01:54]} Bb7 {[%emt 0:11:13]} 22. Bxe4 {[%emt 0:09:03]} dxe4 {[%emt 0:00:10]} 23. Nxc6 {[%emt 0:00:30]} Bxc6 {[%emt 0:05:46]} 24. Qxc6 {[%emt 0:00:05]} Qe6 {[%emt 0:03:41]} 25. Qa4 {[%emt 0:01:41]} Bb4 {[%emt 0:00:55]} 26. Rxb4 {[%emt 0:00:55]} Ra6 {[%emt 0:08:39]} 27. d5 {[%emt 0:03:15]} Qe7 {[%emt 0:07:18]} 28. Rb5 {[%emt 0:01:20]} 1-0

[Event "11th LCC FIDE Open 2019"]
[Site "London"]
[Date "2019.12.02"]
[Round "5.54"]
[White "Orgler, Philipp"]
[Black "Lohia, Sohum"]
[Result "*"]
[ECO "D36"]
[WhiteElo "2047"]
[BlackElo "1889"]
[Annotator "NA"]
[PlyCount "34"]
[EventDate "2019.11.29"]
[EventType "swiss"]
[EventCountry "ENG"]
[SourceTitle "playchess.com"]
[Source "ChessBase"]
[SourceQuality "1"]
[TimeControl "40/5400+30:1800+30"]

1. d4 {[%emt 0:40:02]} d5 {[%emt 0:00:14]} 2. c4 {[%emt 0:01:13]} e6 {[%emt 0:00:47]} 3. Nc3 {[%emt 0:00:43]} Nf6 {[%emt 0:00:10]} 4. cxd5 {[%emt 0:00:51]} exd5 {[%emt 0:00:24]} 5. Bg5 {[%emt 0:00:14]} Nbd7 {[%emt 0:00:27]} 6. e3 {[%emt 0:00:24]} c6 {[%emt 0:00:12]} 7. Bd3 {[%emt 0:00:21]} Be7 {[%emt 0:00:15]} 8. Nf3 {[%emt 0:01:57]} O-O {[%emt 0:00:10]} 9. Qc2 {[%emt 0:02:40]} h6 {[%emt 0:00:38]} 10. Bh4 {[%emt 0:01:13]} Re8 {[%emt 0:02:08]} 11. O-O {[%emt 0:03:14]} Ne4 {[%emt 0:03:09]} 12. Bg3 {[%emt 0:03:01]} Nxg3 {[%emt 0:01:03]} 13. hxg3 {[%emt 0:00:09]} Nf6 {[%emt 0:09:40]} 14. Rab1 {[%emt 0:01:55]} a5 {[%emt 0:05:14]} 15. a3 {[%emt 0:00:15]} Bd6 {[%emt 0:06:28]} 16. Na4 {[%emt 0:03:23]} Ne4 {[%emt 0:02:21]} 17. b4 {[%emt 0:09:52]} Qe7 {[%emt 0:10:11]} *

[Event "11th LCC FIDE Open 2019"]
[Site "London"]
[Date "2019.12.02"]
[Round "5.54"]
[White "Vaddadi, Seshagiri"]
[Black "Gopakumar, Siddharth"]
[Result "0-1"]
[ECO "B28"]
[WhiteElo "2042"]
[BlackElo "1848"]
[Annotator "NA RC"]
[PlyCount "98"]
[EventDate "2019.11.29"]
[EventType "swiss"]
[EventCountry "ENG"]
[SourceTitle "playchess.com"]
[Source "ChessBase"]
[SourceQuality "1"]
[TimeControl "40/5400+30:1800+30"]

1. e4 {[%emt 0:18:44]} c5 {[%emt 0:00:00]} 2. Nf3 {[%emt 0:00:23]} a6 {[%emt 0:00:00]} 3. d4 {[%emt 0:00:25]} cxd4 {[%emt 0:00:00]} 4. Nxd4 {[%emt 0:00:06]} Nf6 {[%emt 0:00:00]} 5. Nc3 {[%emt 0:00:14]} e5 {[%emt 0:00:00]} 6. Nf3 {[%emt 0:00:10]} Bb4 {[%emt 0:00:08]} 7. Bg5 {[%emt 0:04:32]} Bxc3+ {[%emt 0:01:14]} 8. bxc3 {[%emt 0:01:59]} d6 {[%emt 0:00:06]} 9. Qd3 {[%emt 0:02:31]} Qc7 {[%emt 0:08:36]} 10. Rd1 {[%emt 0:02:49]} Nbd7 {[%emt 0:03:12]} 11. Bxf6 {[%emt 0:23:00]} Nxf6 {[%emt 0:00:35]} 12. Qxd6 {[%emt 0:04:21]} Qxd6 {[%emt 0:04:33]} 13. Rxd6 {[%emt 0:00:31]} Nxe4 {[%emt 0:00:17]} 14. Rd5 {[%emt 0:03:25]} f6 {[%emt 0:03:25]} 15. Nxe5 {[%emt 0:01:08]} Be6 {[%emt 0:00:06]} 16. Rd4 {[%emt 0:00:26]} Nxc3 {[%emt 0:01:17]} 17. Nc4 {[%emt 0:02:21]} O-O {[%emt 0:01:19]} 18. Bd3 {[%emt 0:02:32]} b5 {[%emt 0:03:57]} 19. Ne3 {[%emt 0:03:25]} Rfd8 {[%emt 0:16:27]} 20. Rxd8+ {[%emt 0:04:41]} Rxd8 {[%emt 0:00:36]} 21. a3 {[%emt 0:00:19]} Rd4 {[%emt 0:00:52]} 22. Kd2 {[%emt 0:02:12]} Ne4+ {[%emt 0:00:47]} 23. Ke2 {[%emt 0:00:27]} Nc5 {[%emt 0:00:38]} 24. Bf5 {[%emt 0:07:08]} Bxf5 {[%emt 0:04:42]} 25. Nxf5 {[%emt 0:00:04]} Ra4 {[%emt 0:00:08]} 26. Rd1 {[%emt 0:00:46]} Rxa3 {[%emt 0:02:24]} 27. Rd5 {[%emt 0:00:21]} Ne6 {[%emt 0:09:14]} 28. Rd7 {[%emt 0:01:33]} Kf8 {[%emt 0:04:21]} 29. g3 {[%emt 0:01:36]} Rc3 {[%emt 0:01:40]} 30. Kd2 {[%emt 0:01:59]} Rc7 {[%emt 0:03:22]} 31. Rd6 {[%emt 0:00:35]} Nc5 {[%emt 0:00:42]} 32. Ke3 {[%emt 0:02:48]} a5 {[%emt 0:08:11]} 33. Kd4 {[%emt 0:03:00]} Nb7 {[%emt 0:09:32]} 34. Rb6 {[%emt 0:00:54]} Rd7+ {[%emt 0:01:36]} 35. Kc3 {[%emt 0:00:57]} b4+ {[%emt 0:01:22]} 36. Kc4 {[%emt 0:01:12]} Rc7+ {[%emt 0:01:03]} 37. Kb3 {[%emt 0:01:07]} Nc5+ {[%emt 0:05:13]} 38. Ka2 {[%emt 0:00:10]} Nd7 {[%emt 0:00:31]} 39. Nd4 {[%emt 0:02:59]} Rxc2+ {[%emt 0:01:29]} 40. Nxc2 {[%emt 0:00:52]} Nxb6 {[%emt 0:00:06]} 41. Kb3 {[%emt 0:30:09]} Ke7 {[%emt 0:31:03]} 42. Nd4 {[%emt 0:00:10]} Kd7 {[%emt 0:00:42]} 43. Nf5 {[%emt 0:00:00]} g6 {[%emt 0:00:00]} 44. Nd4 {[%emt 0:00:00]} Kd6 {[%emt 0:00:00]} 45. Ne2 {[%emt 0:00:00]} Kc5 {[%emt 0:00:00]} 46. Nf4 {[%emt 0:00:00]} a4+ {[%emt 0:00:00]} 47. Kb2 {[%emt 0:00:00]} Kc4 {[%emt 0:00:00]} 48. h4 {[%emt 0:00:00]} a3+ {[%emt 0:00:00]} 49. Ka2 {[%emt 0:00:00]} Nd5 {[%emt 0:00:00]} 0-1

[Event "11th LCC FIDE Open 2019"]
[Site "London"]
[Date "2019.12.02"]
[Round "5.55"]
[White "Mugalu, Hassan"]
[Black "Chakanyuka, Charles"]
[Result "1-0"]
[ECO "A46"]
[WhiteElo "1836"]
[BlackElo "2036"]
[Annotator "NA RC"]
[PlyCount "129"]
[EventDate "2019.11.29"]
[EventType "swiss"]
[EventCountry "ENG"]
[SourceTitle "playchess.com"]
[Source "ChessBase"]
[SourceQuality "1"]
[TimeControl "40/5400+30:1800+30"]

1. d4 {[%emt 0:00:00]} d6 {[%emt 0:04:45]} 2. Bf4 {[%emt 0:02:05]} g6 {[%emt 0:00:15]} 3. e3 {[%emt 0:01:17]} Bg7 {[%emt 0:00:13]} 4. Nf3 {[%emt 0:01:09]} c5 {[%emt 0:00:35]} 5. c3 {[%emt 0:00:50]} cxd4 {[%emt 0:00:11]} 6. cxd4 {[%emt 0:00:32]} Nf6 {[%emt 0:00:13]} 7. Nc3 {[%emt 0:01:05]} O-O {[%emt 0:00:08]} 8. Be2 {[%emt 0:01:32]} Nc6 {[%emt 0:02:39] A46: 1 d4 Nf6 2 Nf3 e6: Torre, London and Colle Systems} 9. h3 {[%emt 0:00:58]} (9. O-O Bf5 10. h3 Rc8 11. Rc1 Qb6 12. Na4 Qa5 13. Nc3 Nb4 14. Qd2 Nbd5 15. Nxd5 Qxd5 16. b3 {½-½ (68) Grachev,B (2654)-Artemiev,V (2692) Sochi 2017}) 9... a6 {[%emt 0:02:00]} 10. Rc1 $146 {[%emt 0:02:27]} ({Predecessor:} 10. O-O b5 11. Rc1 Bb7 12. Bg5 Rc8 13. a3 Na5 14. Nd2 h6 15. Bh4 g5 16. Bg3 {1-0 (52) Martinez Arroyo,L (1871)-Valdeblanquez,J (2014) San Andres Isla 2015}) 10... Qb6 {[%emt 0:03:06]} 11. Qd2 {[%emt 0:03:27]} Nb4 {[%emt 0:10:44]} 12. Bc4 {[%emt 0:07:18]} d5 {[%emt 0:04:43]} 13. Bb3 {[%emt 0:06:37]} Bf5 {[%emt 0:01:40]} 14. O-O {[%emt 0:00:51]} Nd3 {[%emt 0:01:38]} 15. Na4 {[%emt 0:05:09]} Qb5 {[%emt 0:05:05]} 16. Rc7 {[%emt 0:04:10]} Nxf4 {[%emt 0:03:26]} 17. exf4 {[%emt 0:00:10]} Rac8 {[%emt 0:03:24]} 18. Nc3 {[%emt 0:06:38]} Qb4 {[%emt 0:09:39]} 19. Rxc8 {[%emt 0:07:31]} Rxc8 {[%emt 0:03:49]} 20. Nxd5 {[%emt 0:03:53]} Nxd5 {[%emt 0:04:06]} 21. Bxd5 {[%emt 0:00:35]} Qxd2 {[%emt 0:09:05]} 22. Nxd2 {[%emt 0:00:10]} Rc2 {[%emt 0:00:18]} 23. Nf3 {[%emt 0:02:38]} Rxb2 {[%emt 0:01:33]} 24. Bb3 {[%emt 0:00:44]} Bc2 {[%emt 0:09:09]} 25. Bxc2 {[%emt 0:10:05]} Rxc2 {[%emt 0:00:12]} 26. a4 {[%emt 0:00:36]} Kf8 {[%emt 0:03:56]} 27. Rb1 {[%emt 0:00:21]} Rc7 {[%emt 0:00:34]} 28. Rb6 {[%emt 0:01:03]} Ke8 {[%emt 0:00:44]} 29. Kf1 {[%emt 0:00:24]} e6 {[%emt 0:05:39]} 30. Ne5 {[%emt 0:01:00]} Bxe5 {[%emt 0:00:31]} 31. dxe5 {[%emt 0:01:12]} Kd8 {[%emt 0:00:20]} 32. Rb4 {[%emt 0:01:21]} Kc8 {[%emt 0:00:32]} 33. a5 {[%emt 0:01:07]} Rc2 {[%emt 0:01:43]} 34. Ra4 {[%emt 0:00:32]} Kc7 {[%emt 0:00:22]} 35. g3 {[%emt 0:00:16]} h5 {[%emt 0:00:58]} 36. Kg2 {[%emt 0:02:49]} Kc6 {[%emt 0:01:16]} 37. Ra3 {[%emt 0:00:17]} Rc4 {[%emt 0:00:47]} 38. Kf3 {[%emt 0:00:11]} b5 {[%emt 0:02:11]} 39. axb6 {[%emt 0:00:35]} Kxb6 {[%emt 0:00:03]} 40. g4 {[%emt 0:00:26]} a5 {[%emt 0:00:29]} 41. Kg3 {[%emt 0:30:05]} a4 {[%emt 0:32:19]} 42. Rd3 {[%emt 0:00:53]} h4+ {[%emt 0:00:59]} 43. Kxh4 {[%emt 0:00:41]} Rxf4 {[%emt 0:00:59]} 44. Kg3 {[%emt 0:00:07]} Rc4 {[%emt 0:00:36]} 45. h4 {[%emt 0:01:07]} Rc1 {[%emt 0:00:00]} 46. Kf4 {[%emt 0:00:00]} Kb5 {[%emt 0:00:00]} 47. Kg5 {[%emt 0:00:00]} Rg1 {[%emt 0:00:00]} 48. Rd7 {[%emt 0:00:00]} a3 {[%emt 0:00:00]} 49. Rxf7 {[%emt 0:00:00]} Kb6 {[%emt 0:00:00]} 50. Rf3 {[%emt 0:00:00]} a2 {[%emt 0:00:00]} 51. Ra3 {[%emt 0:00:00]} a1=Q {[%emt 0:00:14]} 52. Rxa1 {[%emt 0:00:30]} Rxa1 {[%emt 0:00:00]} 53. Kxg6 {[%emt 0:00:00]} Ra4 {[%emt 0:00:08]} 54. f3 {[%emt 0:00:00]} Kc6 {[%emt 0:02:58]} 55. h5 {[%emt 0:00:00]} Kd5 {[%emt 0:00:13]} 56. h6 {[%emt 0:00:00]} Kxe5 {[%emt 0:00:13]} 57. g5 {[%emt 0:00:00]} Ra7 {[%emt 0:05:44]} 58. h7 {[%emt 0:00:00]} Ra8 {[%emt 0:00:02]} 59. Kh6 $11 {[%emt 0:00:00]} Kf5 {[%emt 0:00:40]} 60. f4 {[%emt 0:00:00]} e5 {[%emt 0:01:30]} 61. g6 {[%emt 0:00:00]} Ra1 {[%emt 0:00:43]} 62. fxe5 {[%emt 0:00:00]} Rh1+ {[%emt 0:00:29]} 63. Kg7 {[%emt 0:00:00]} Rg1 {[%emt 0:00:17]} 64. h8=Q {[%emt 0:00:00]} Rxg6+ {[%emt 0:00:43]} 65. Kf7 {[%emt 0:00:00]} 1-0

[Event "11th LCC FIDE Open 2019"]
[Site "London"]
[Date "2019.12.02"]
[Round "5.56"]
[White "Mugalu, Hassan"]
[Black "Chakanyuka, Charles"]
[Result "*"]
[ECO "A46"]
[WhiteElo "1836"]
[BlackElo "2036"]
[Annotator "NA"]
[PlyCount "30"]
[EventDate "2019.11.29"]
[EventType "swiss"]
[EventCountry "ENG"]
[SourceTitle "playchess.com"]
[Source "ChessBase"]
[SourceQuality "1"]
[TimeControl "40/5400+30:1800+30"]

1. d4 {[%emt 0:00:00]} d6 {[%emt 0:04:45]} 2. Bf4 {[%emt 0:02:05]} g6 {[%emt 0:00:14]} 3. e3 {[%emt 0:01:17]} Bg7 {[%emt 0:00:13]} 4. Nf3 {[%emt 0:01:09]} c5 {[%emt 0:00:35]} 5. c3 {[%emt 0:00:50]} cxd4 {[%emt 0:00:11]} 6. cxd4 {[%emt 0:00:32]} Nf6 {[%emt 0:00:13]} 7. Nc3 {[%emt 0:01:05]} O-O {[%emt 0:00:07]} 8. Be2 {[%emt 0:01:32]} Nc6 {[%emt 0:02:39]} 9. h3 {[%emt 0:00:58]} a6 {[%emt 0:02:00]} 10. Rc1 {[%emt 0:02:27]} Qb6 {[%emt 0:03:06]} 11. Qd2 {[%emt 0:03:27]} Nb4 {[%emt 0:10:44]} 12. Bc4 {[%emt 0:07:18]} d5 {[%emt 0:04:43]} 13. Bb3 {[%emt 0:06:37]} Bf5 {[%emt 0:01:40]} 14. O-O {[%emt 0:00:51]} Nd3 {[%emt 0:01:38]} 15. Na4 {[%emt 0:05:09]} Qb5 {[%emt 0:05:05]} *